fUSD/lending_fUSD_20250105
["ID","MTS","AMOUNT","RATE_DAILY","PERIOD"]
[347796978,1736112644590,-500.0,0.00010819,2]
[347796979,1736112644600,-500.0,0.00010819,2]
[347796980,1736112644610,-501.26,0.00010819,2]
[347796981,1736112644620,-500.0,0.00010819,2]
[347796982,1736112644631,-618.39,0.00010819,2]
[347796983,1736112644641,-500.0,0.00010819,2]
[347796984,1736112644651,-500.0,0.00010819,2]
[347796985,1736112644662,-500.0,0.00010819,2]
[347796986,1736112644672,-500.0,0.00010819,2]
[347796987,1736112644681,-555.96,0.00010819,2]
[347796988,1736112644691,-572.43,0.00010819,2]
[347796989,1736112644702,-326.14641374,0.00010819,2]
[347796990,1736112644711,-500.0,0.00010819,2]
[347796991,1736112644723,-500.0,0.00010819,2]
[347796992,1736112644733,-592.51,0.00010819,2]
[347796993,1736112644743,-500.0,0.00010819,2]
[347796994,1736112644753,-500.0,0.00010819,2]
[347796995,1736112644763,-500.0,0.00010819,2]
[347796996,1736112644773,-500.0,0.00010819,2]
[347796997,1736112644783,-500.0,0.00010819,2]
[347796998,1736112644794,-500.0,0.00010819,2]
[347796999,1736112644805,-500.0,0.00010819,2]
[347797000,1736112644815,-500.0,0.00010819,2]
[347797001,1736112644825,-521.44,0.00010819,2]
[347797002,1736112644834,-500.0,0.00010819,2]
[347797003,1736112644844,-500.0,0.00010819,2]
[347797004,1736112644854,-500.0,0.00010819,2]
[347797005,1736112644864,-500.0,0.00010819,2]
[347797006,1736112644874,-500.0,0.00010819,2]
[347797007,1736112644884,-543.07,0.00010819,2]
[347797008,1736112644894,-500.0,0.00010819,2]
[347797009,1736112644904,-500.0,0.00010819,2]
[347797010,1736112644914,-630.95,0.00010819,2]
[347797011,1736112644924,-547.03,0.00010819,2]
[347797012,1736112644934,-500.0,0.00010819,2]
[347797013,1736112644944,-500.0,0.00010819,2]
[347797014,1736112644954,-500.0,0.00010819,2]
[347797015,1736112644964,-500.0,0.00010819,2]
[347797016,1736112644974,-500.0,0.00010819,2]
[347797017,1736112644984,-500.0,0.00010819,2]
[347797018,1736112644998,-500.0,0.00010819,2]
[347797019,1736112645008,-500.0,0.00010819,2]
[347797020,1736112645018,-500.0,0.00010819,2]
[347797021,1736112645029,-501.38,0.00010819,2]
[347797022,1736112645039,-607.54,0.00010819,2]
[347797023,1736112645049,-500.0,0.00010819,2]
[347797024,1736112645059,-500.0,0.00010819,2]
[347797025,1736112645069,-500.0,0.00010819,2]
[347797026,1736112645079,-500.0,0.00010819,2]
[347797027,1736112645091,-732.02,0.00010819,2]
[347797028,1736112645104,-177.6060806,0.00010819,2]
[347797029,1736112645118,-322.3939194,0.00010819,2]
[347797030,1736112645128,-500.0,0.00010819,2]
[347797031,1736112645139,-500.0,0.00010819,2]
[347797032,1736112645149,-500.0,0.00010819,2]
[347797033,1736112645159,-500.0,0.00010819,2]
[347797034,1736112645169,-500.0,0.00010819,2]
[347797035,1736112645179,-500.0,0.00010819,2]
[347797036,1736112645191,-500.0,0.00010819,2]
[347797037,1736112645202,-500.0,0.00010819,2]
[347797038,1736112645212,-500.0,0.00010819,2]
[347797039,1736112645420,-500.0,0.00010819,2]
[347797040,1736112645431,-836.09,0.00010819,2]
[347797041,1736112645441,-500.0,0.00010819,2]
[347797042,1736112645451,-500.0,0.00010819,2]
[347797043,1736112645460,-500.0,0.00010819,2]
[347797044,1736112645470,-500.0,0.00010819,2]
[347797045,1736112645481,-500.0,0.00010819,2]
[347797046,1736112645491,-500.0,0.00010819,2]
[347797047,1736112645500,-505.1,0.00010819,2]
[347797048,1736112645510,-500.0,0.00010819,2]
[347797049,1736112645520,-500.0,0.00010819,2]
[347797050,1736112645530,-1403.75,0.00010819,2]
[347797051,1736112645540,-639.48,0.00010819,2]
[347797052,1736112645549,-500.0,0.00010819,2]
[347797053,1736112645559,-500.0,0.00010819,2]
[347797054,1736112645569,-500.0,0.00010819,2]
[347797055,1736112645579,-500.0,0.00010819,2]
[347797056,1736112645588,-500.0,0.00010819,2]
[347797057,1736112645597,-500.0,0.00010819,2]
[347797058,1736112645607,-500.0,0.00010819,2]
[347797059,1736112645617,-527.13,0.00010819,2]
[347797060,1736112645627,-500.0,0.00010819,2]
[347797061,1736112645637,-500.0,0.00010819,2]
[347797062,1736112645647,-500.0,0.00010819,2]
[347797063,1736112645657,-500.0,0.00010819,2]
[347797064,1736112645667,-500.0,0.00010819,2]
[347797065,1736112645677,-518.9,0.00010819,2]
[347797066,1736112645689,-500.0,0.00010819,2]
[347797067,1736112645699,-500.0,0.00010819,2]
[347797068,1736112645709,-500.0,0.00010819,2]
[347797069,1736112645719,-500.0,0.00010819,2]
[347797070,1736112645728,-500.0,0.00010819,2]
[347797071,1736112645739,-753.31,0.00010819,2]
[347797072,1736112645749,-247.85,0.00010819,2]
[347797073,1736112645759,-500.0,0.00010819,2]
[347797074,1736112645769,-500.0,0.00010819,2]
[347797075,1736112645779,-767.11,0.00010819,2]
[347797076,1736112645791,-500.0,0.00010819,2]
[347797077,1736112645802,-500.0,0.00010819,2]
[347797078,1736112645811,-500.0,0.00010819,2]
[347797079,1736112645821,-624.78118712,0.00010819,2]
[347797080,1736112645831,-500.0,0.00010819,2]
[347797081,1736112645841,-500.0,0.00010819,2]
[347797082,1736112645851,-186.23346614,0.00010819,2]
[347797083,1736112645861,-500.0,0.00010819,2]
[347797084,1736112645871,-500.0,0.00010819,2]
[347797085,1736112645882,-243.47234988,0.00010819,2]
[347797086,1736112645892,-1288.76,0.00010819,2]
[347797087,1736112645902,-500.0,0.00010819,2]
[347797088,1736112645911,-626.09,0.00010819,2]
[347797089,1736112645921,-500.0,0.00010819,2]
[347797090,1736112645931,-500.0,0.00010819,2]
[347797091,1736112645942,-152.46,0.00010819,2]
[347797092,1736112645951,-500.0,0.00010819,2]
[347797093,1736112645960,-638.12,0.00010819,2]
[347797095,1736112645970,-494.53,0.00010819,2]
[347797096,1736112645979,-500.0,0.00010819,2]
[347797097,1736112645989,-500.0,0.00010819,2]
[347797098,1736112646000,-500.0,0.00010819,2]
[347797099,1736112646010,-225.12965505,0.00010819,2]
[347797102,1736112646205,-274.87034495,0.00010819,2]
[347797103,1736112646215,-500.0,0.00010819,2]
[347797104,1736112646225,-480.51,0.00010819,2]
[347797105,1736112646235,-469.0984641,0.00010819,2]
[347797106,1736112646252,-30.9015359,0.00010819,2]
[347797107,1736112646261,-500.0,0.00010819,2]
[347797108,1736112646271,-500.0,0.00010819,2]
[347797109,1736112646282,-500.0,0.00010819,2]
[347797110,1736112646292,-500.0,0.00010819,2]
[347797111,1736112646302,-500.0,0.0001082,2]
[347797112,1736112646311,-500.0,0.0001082,2]
[347797113,1736112646321,-543.87,0.00010821,2]
[347797114,1736112646330,-500.0,0.00010821,2]
[347797115,1736112646340,-500.0,0.00010821,2]
[347797116,1736112646349,-500.0,0.00010821,2]
[347797117,1736112646359,-550.99,0.00010821,2]
[347797118,1736112646368,-500.0,0.00010821,2]
[347797119,1736112646378,-500.0,0.00010821,2]
[347797120,1736112646388,-500.0,0.00010821,2]
[347797121,1736112646397,-500.0,0.00010821,2]
[347797122,1736112646407,-1239.66,0.00010821,2]
[347797123,1736112646417,-349.3975337,0.00010821,2]
[347797124,1736112646427,-500.0,0.00010821,2]
[347797125,1736112646436,-347.15733575,0.00010859,2]
[347797126,1736112646446,-169.77820565,0.000109,2]
[347797127,1736112646455,-169.77820559,0.000109,2]
[347797128,1736112646465,-169.77820559,0.000109,2]
[347797129,1736112646474,-169.77820559,0.000109,2]
[347797130,1736112646483,-150.0,0.00010959,2]
[347797131,1736112646493,-347.15733575,0.00010986,2]
[347797132,1736112646502,-400.0,0.00010986,2]
[347797133,1736112646510,-255.0,0.00010995,2]
[347797134,1736112646519,-5000.0,0.00011,2]
[347797135,1736112646528,-5946.0,0.00011,2]
[347797136,1736112646538,-166.51,0.0001104,2]
[347797137,1736112646548,-150.0,0.00011047,2]
[347797138,1736112646557,-150.0,0.00011047,2]
[347797139,1736112646571,-281.57246385,0.00011091,2]
[347797140,1736112646583,-175.30753615,0.00011091,2]
[347797141,1736112646593,-424.69246385,0.00011091,2]
[347797142,1736112646605,-75.30753615,0.00011091,2]
[347797143,1736112646615,-500.0,0.00011091,2]
[347797144,1736112646625,-504.24638674,0.00011091,2]
[347797145,1736112646637,-262.27361326,0.00011091,2]
[347797146,1736112646646,-500.0,0.00011091,2]
[347797147,1736112646656,-500.0,0.00011091,2]
[347797148,1736112646665,-500.0,0.00011091,2]
[347797149,1736112646675,-572.13,0.00011091,2]
[347797150,1736112646686,-500.0,0.00011091,2]
[347797151,1736112646696,-355.10307474,0.00011091,2]
[347797152,1736112646821,-144.89692526,0.00011091,2]
[347797153,1736112646831,-500.0,0.00011091,2]
[347797154,1736112646842,-500.0,0.00011091,2]
[347797155,1736112646852,-162.135959,0.00011091,2]
[347797156,1736112646862,-795.38,0.00011091,2]
[347797157,1736112646871,-733.76,0.00011091,2]
[347797158,1736112646880,-500.0,0.00011091,2]
[347797159,1736112646891,-500.0,0.00011091,2]
[347797160,1736112646900,-164.13,0.00011092,2]
[347797161,1736112646910,-945.9,0.00011092,2]
[347797162,1736112646919,-500.0,0.00011092,2]
[347797163,1736112646929,-537.91,0.00011092,2]
[347797164,1736112646940,-167.68549287,0.00011092,2]
[347797165,1736112646951,-1010.82,0.00011092,2]
[347797166,1736112646961,-500.0,0.00011092,2]
[347797167,1736112646970,-500.0,0.00011093,2]
[347797168,1736112646981,-500.0,0.00011093,2]
[347797169,1736112646990,-500.0,0.00011093,2]
[347797170,1736112647000,-241.77,0.00011093,2]
[347797171,1736112647010,-500.0,0.00011093,2]
[347797172,1736112647019,-181.59,0.00011093,2]
[347797173,1736112647029,-500.0,0.00011093,2]
[347797174,1736112647039,-500.0,0.00011093,2]
[347797175,1736112647049,-157.98,0.00011093,2]
[347797176,1736112647059,-198.66,0.00011093,2]
[347797177,1736112647069,-217.54276544,0.00011093,2]
[347797178,1736112647078,-292.35,0.00011093,2]
[347797179,1736112647088,-500.0,0.00011093,2]
[347797180,1736112647103,-500.0,0.00011093,2]
[347797181,1736112647114,-500.0,0.00011093,2]
[347797182,1736112647124,-500.0,0.00011093,2]
[347797183,1736112647134,-500.0,0.00011093,2]
[347797184,1736112647146,-545.83,0.00011093,2]
[347797185,1736112647155,-169.45,0.00011093,2]
[347797186,1736112647165,-500.0,0.00011093,2]
[347797187,1736112647176,-500.0,0.00011093,2]
[347797188,1736112647186,-500.0,0.00011093,2]
[347797189,1736112647196,-705.99,0.00011093,2]
[347797190,1736112647206,-500.0,0.00011093,2]
[347797191,1736112647215,-502.53,0.00011093,2]
[347797192,1736112647225,-630.13,0.00011093,2]
[347797193,1736112647235,-500.0,0.00011093,2]
[347797194,1736112647245,-500.0,0.00011093,2]
[347797195,1736112647255,-500.0,0.00011093,2]
[347797196,1736112647265,-500.0,0.00011093,2]
[347797197,1736112647275,-451.76823241,0.00011093,2]
[347797198,1736112647285,-500.0,0.00011093,2]
[347797199,1736112647295,-500.0,0.00011093,2]
[347797200,1736112647305,-500.0,0.00011093,2]
[347797201,1736112647315,-500.0,0.00011093,2]
[347797202,1736112647325,-500.0,0.00011093,2]
[347797203,1736112647335,-500.0,0.00011093,2]
[347797204,1736112647345,-500.0,0.00011093,2]
[347797205,1736112647355,-500.0,0.00011093,2]
[347797206,1736112647364,-500.0,0.00011093,2]
[347797207,1736112647374,-528.26518802,0.00011093,2]
[347797208,1736112647387,-87.69481198,0.00011093,2]
[347797209,1736112647397,-342.92122059,0.00011093,2]
[347797210,1736112647406,-182.98,0.00011093,2]
[347797211,1736112647416,-425.85327243,0.00011093,2]
[347797212,1736112647427,-74.14672757,0.00011093,2]
[347797213,1736112647437,-500.0,0.00011093,2]
[347797214,1736112647447,-265.16,0.00011093,2]
[347797215,1736112647457,-67.78398224,0.00011093,2]
[347797216,1736112647469,-146.72601776,0.00011093,2]
[347797217,1736112647478,-296.46,0.00011093,2]
[347797218,1736112647487,-500.0,0.00011093,2]
[347797219,1736112647496,-56.81398224,0.00011093,2]
[347797220,1736112647518,-443.18601776,0.00011093,2]
[347797221,1736112647528,-500.0,0.00011093,2]
[347797222,1736112647539,-500.0,0.00011093,2]
[347797223,1736112647549,-500.0,0.00011093,2]
[347797224,1736112647559,-500.0,0.00011093,2]
[347797225,1736112647569,-500.0,0.00011093,2]
[347797226,1736112647578,-500.0,0.00011093,2]
[347797227,1736112647588,-500.0,0.00011093,2]
[347797228,1736112647597,-500.0,0.00011093,2]
[347797229,1736112647607,-229.97,0.00011093,2]
[347797230,1736112647617,-500.0,0.00011093,2]
[347797231,1736112647626,-500.0,0.00011093,2]
[347797232,1736112647636,-613.48,0.00011093,2]
[347797233,1736112647646,-199.78,0.00011093,2]
[347797234,1736112647655,-500.0,0.00011093,2]
[347797235,1736112647666,-732.02,0.00011093,2]
[347797236,1736112647675,-500.0,0.00011093,2]
[347797237,1736112647685,-500.0,0.00011093,2]
[347797238,1736112647695,-500.0,0.00011093,2]
[347797239,1736112647704,-500.0,0.00011093,2]
[347797240,1736112647714,-505.06424015,0.00011093,2]
[347797241,1736112647723,-836.09,0.00011093,2]
[347797242,1736112647794,-500.0,0.00011093,2]
[347797243,1736112647805,-500.0,0.00011093,2]
[347797244,1736112647814,-500.0,0.00011093,2]
[347797245,1736112647824,-500.0,0.00011093,2]
[347797246,1736112647833,-500.0,0.00011093,2]
[347797247,1736112647843,-505.1,0.00011093,2]
[347797248,1736112647853,-500.0,0.00011093,2]
[347797249,1736112647862,-500.0,0.00011093,2]
[347797250,1736112647871,-1403.75,0.00011093,2]
[347797251,1736112647881,-500.0,0.00011093,2]
[347797252,1736112647890,-500.0,0.00011093,2]
[347797253,1736112647900,-500.0,0.00011093,2]
[347797254,1736112647909,-500.0,0.00011093,2]
[347797255,1736112647918,-500.0,0.00011093,2]
[347797256,1736112647927,-500.0,0.00011093,2]
[347797257,1736112647937,-527.13,0.00011093,2]
[347797258,1736112647947,-218.31,0.00011093,2]
[347797259,1736112647955,-500.0,0.00011093,2]
[347797260,1736112647964,-500.0,0.00011093,2]
[347797261,1736112647974,-500.0,0.00011093,2]
[347797262,1736112647983,-500.0,0.00011093,2]
[347797263,1736112647993,-379.4,0.00011093,2]
[347797264,1736112648003,-500.0,0.00011093,2]
[347797265,1736112648012,-500.0,0.00011093,2]
[347797266,1736112648022,-500.0,0.00011093,2]
[347797267,1736112648031,-753.31,0.00011093,2]
[347797268,1736112648041,-500.0,0.00011093,2]
[347797269,1736112648051,-500.0,0.00011093,2]
[347797270,1736112648061,-767.11,0.00011093,2]
[347797271,1736112648070,-500.0,0.00011093,2]
[347797272,1736112648080,-500.0,0.00011093,2]
[347797273,1736112648090,-311.16,0.00011093,2]
[347797274,1736112648101,-500.0,0.00011093,2]
[347797275,1736112648111,-500.0,0.00011093,2]
[347797276,1736112648120,-627.23,0.00011093,2]
[347797277,1736112648130,-500.0,0.00011093,2]
[347797278,1736112648140,-1288.76,0.00011093,2]
[347797279,1736112648150,-254.33,0.00011093,2]
[347797280,1736112648159,-500.0,0.00011094,2]
[347797281,1736112648169,-500.0,0.00011094,2]
[347797282,1736112648179,-543.87,0.00011095,2]
[347797283,1736112648189,-500.0,0.00011095,2]
[347797284,1736112648199,-500.0,0.00011095,2]
[347797285,1736112648208,-500.0,0.00011095,2]
[347797286,1736112648218,-550.99,0.00011095,2]
[347797287,1736112648228,-500.0,0.00011095,2]
[347797288,1736112648238,-500.0,0.00011095,2]
[347797289,1736112648248,-500.0,0.00011095,2]
[347797290,1736112648257,-500.0,0.00011095,2]
[347797291,1736112648267,-1239.66,0.00011095,2]
[347797292,1736112648276,-500.0,0.00011095,2]
[347797293,1736112648287,-347.15733575,0.00011114,2]
[347797294,1736112648297,-169.77820559,0.00011233,2]
[347797295,1736112648307,-347.15733575,0.00011241,2]
[347797296,1736112648317,-184.66,0.00011255,2]
[347797297,1736112648327,-500.0,0.00011264,2]
[347797298,1736112648336,-772.0,0.00011338,2]
[347797299,1736112648346,-1173.0,0.00011338,2]
[347797300,1736112648355,-500.0,0.00011365,2]
[347797301,1736112648364,-500.0,0.00011365,2]
[347797302,1736112648374,-766.52,0.00011365,2]
[347797303,1736112648383,-500.0,0.00011365,2]
[347797304,1736112648393,-500.0,0.00011365,2]
[347797305,1736112648403,-500.0,0.00011365,2]
[347797306,1736112648412,-572.13,0.00011365,2]
[347797307,1736112648422,-500.0,0.00011365,2]
[347797308,1736112648432,-500.0,0.00011365,2]
[347797309,1736112648441,-500.0,0.00011365,2]
[347797310,1736112648451,-500.0,0.00011365,2]
[347797311,1736112648460,-795.38,0.00011365,2]
[347797312,1736112648470,-733.76,0.00011365,2]
[347797313,1736112648480,-500.0,0.00011365,2]
[347797314,1736112648490,-500.0,0.00011365,2]
[347797315,1736112648500,-945.9,0.00011366,2]
[347797316,1736112648510,-500.0,0.00011366,2]
[347797317,1736112648519,-537.91,0.00011366,2]
[347797318,1736112648528,-1010.82,0.00011366,2]
[347797319,1736112648539,-500.0,0.00011366,2]
[347797320,1736112648548,-705.99,0.00011367,2]
[347797321,1736112648558,-500.0,0.00011367,2]
[347797322,1736112648567,-500.0,0.00011367,2]
[347797323,1736112648577,-500.0,0.00011367,2]
[347797324,1736112648588,-500.0,0.00011367,2]
[347797325,1736112648598,-500.0,0.00011367,2]
[347797326,1736112648608,-500.0,0.00011367,2]
[347797327,1736112648618,-500.0,0.00011367,2]
[347797328,1736112648629,-732.02,0.00011367,2]
[347797329,1736112648638,-836.09,0.00011367,2]
[347797330,1736112648648,-500.0,0.00011367,2]
[347797331,1736112648658,-527.06,0.00011367,2]
[347797332,1736112648668,-505.1,0.00011367,2]
[347797333,1736112648677,-1403.75,0.00011367,2]
[347797334,1736112648687,-500.0,0.00011367,2]
[347797335,1736112648697,-527.13,0.00011367,2]
[347797336,1736112648706,-753.31,0.00011367,2]
[347797337,1736112648716,-240.25,0.00011367,2]
[347797338,1736112648726,-767.11,0.00011367,2]
[347797339,1736112648735,-500.0,0.00011367,2]
[347797340,1736112648745,-1288.76,0.00011367,2]
[347797341,1736112648755,-500.0,0.00011368,2]
[347797342,1736112648765,-500.0,0.00011368,2]
[347797343,1736112648774,-347.15733575,0.00011369,2]
[347797344,1736112648784,-543.87,0.00011369,2]
[347797345,1736112648794,-500.0,0.00011369,2]
[347797346,1736112648805,-500.0,0.00011369,2]
[347797347,1736112648816,-500.0,0.00011369,2]
[347797348,1736112648826,-550.99,0.00011369,2]
[347797349,1736112648835,-500.0,0.00011369,2]
[347797350,1736112648846,-500.0,0.00011369,2]
[347797351,1736112648855,-500.0,0.00011369,2]
[347797352,1736112648865,-500.0,0.00011369,2]
[347797353,1736112648874,-1239.66,0.00011369,2]
[347797354,1736112648884,-500.0,0.00011369,2]
[347797355,1736112648894,-347.15733575,0.00011497,2]
[347797356,1736112648904,-2751.0,0.00011507,2]
[347797357,1736112648914,-1000.0,0.00011522,2]
[347797358,1736112648924,-800.0,0.00011538,2]
[347797359,1736112648934,-169.77820559,0.00011567,2]
[347797360,1736112648943,-347.15733575,0.00011624,2]
[347797361,1736112648953,-500.0,0.00011639,2]
[347797362,1736112648963,-500.0,0.00011639,2]
[347797363,1736112648972,-766.52,0.00011639,2]
[347797364,1736112648981,-500.0,0.00011639,2]
[347797365,1736112648991,-500.0,0.00011639,2]
[347797366,1736112649000,-500.0,0.00011639,2]
[347797367,1736112649011,-572.13,0.00011639,2]
[347797368,1736112649020,-500.0,0.00011639,2]
[347797369,1736112649029,-500.0,0.00011639,2]
[347797370,1736112649041,-500.0,0.00011639,2]
[347797371,1736112649050,-500.0,0.00011639,2]
[347797372,1736112649059,-162.135959,0.00011639,2]
[347797373,1736112649069,-795.38,0.00011639,2]
[347797374,1736112649079,-733.76,0.00011639,2]
[347797375,1736112649088,-168.308035,0.00011639,2]
[347797376,1736112649099,-500.0,0.00011639,2]
[347797377,1736112649113,-500.0,0.00011639,2]
[347797378,1736112649122,-1701.28297287,0.0001164,2]
[347797379,1736112649132,-945.9,0.0001164,2]
[347797380,1736112649142,-500.0,0.0001164,2]
[347797381,1736112649153,-537.91,0.0001164,2]
[347797382,1736112649163,-1010.82,0.0001164,2]
[347797383,1736112649172,-500.0,0.0001164,2]
[347797384,1736112649184,-705.99,0.00011641,2]
[347797385,1736112649193,-500.0,0.00011641,2]
[347797386,1736112649203,-500.0,0.00011641,2]
[347797387,1736112649212,-500.0,0.00011641,2]
[347797388,1736112649222,-500.0,0.00011641,2]
[347797389,1736112649232,-500.0,0.00011641,2]
[347797390,1736112649241,-500.0,0.00011641,2]
[347797391,1736112649252,-500.0,0.00011641,2]
[347797392,1736112649261,-732.02,0.00011641,2]
[347797393,1736112649271,-836.09,0.00011641,2]
[347797394,1736112649281,-500.0,0.00011641,2]
[347797395,1736112649291,-527.06,0.00011641,2]
[347797396,1736112649300,-505.1,0.00011641,2]
[347797397,1736112649309,-1531.36,0.00011641,2]
[347797398,1736112649319,-1403.75,0.00011641,2]
[347797399,1736112649329,-500.0,0.00011641,2]
[347797400,1736112649338,-527.13,0.00011641,2]
[347797401,1736112649348,-753.31,0.00011641,2]
[347797402,1736112649358,-767.11,0.00011641,2]
[347797403,1736112649368,-500.0,0.00011641,2]
[347797404,1736112649378,-1288.76,0.00011641,2]
[347797405,1736112649388,-500.0,0.00011642,2]
[347797406,1736112649398,-500.0,0.00011642,2]
[347797407,1736112649408,-543.87,0.00011643,2]
[347797408,1736112649418,-500.0,0.00011643,2]
[347797409,1736112649428,-500.0,0.00011643,2]
[347797410,1736112649438,-500.0,0.00011643,2]
[347797411,1736112649448,-550.99,0.00011643,2]
[347797412,1736112649458,-500.0,0.00011643,2]
[347797413,1736112649468,-500.0,0.00011643,2]
[347797414,1736112649478,-500.0,0.00011643,2]
[347797415,1736112649488,-500.0,0.00011643,2]
[347797416,1736112649498,-1239.66,0.00011643,2]
[347797417,1736112649508,-500.0,0.00011643,2]
[347797418,1736112649518,-471.365,0.0001168,2]
[347797419,1736112649528,-537.0,0.00011746,2]
[347797420,1736112649539,-3722.0,0.00011746,2]
[347797421,1736112649550,-1103.0,0.00011746,2]
[347797422,1736112649560,-1267.72,0.00011746,2]
[347797423,1736112649569,-3893.0,0.00011746,2]
[347797424,1736112649580,-2014.0,0.00011746,2]
[347797425,1736112649589,-150.0,0.00011746,2]
[347797426,1736112649598,-347.15733575,0.00011752,2]
[347797427,1736112649608,-200.0,0.000118,2]
[347797428,1736112649618,-347.15733575,0.00011879,2]
[347797429,1736112649627,-169.77820559,0.000119,2]
[347797430,1736112649638,-324.78234385,0.000119,4]
[347797431,1736112649647,-1344.34984935,0.000119,2]
[347797432,1736112649657,-500.0,0.00011913,2]
[347797433,1736112649667,-500.0,0.00011913,2]
[347797434,1736112649677,-766.52,0.00011913,2]
[347797435,1736112649687,-500.0,0.00011913,2]
[347797436,1736112649697,-500.0,0.00011913,2]
[347797437,1736112649707,-500.0,0.00011913,2]
[347797438,1736112649718,-572.13,0.00011913,2]
[347797439,1736112649727,-649.4871034,0.00011913,2]
[347797440,1736112649737,-500.0,0.00011913,2]
[347797441,1736112649746,-500.0,0.00011913,2]
[347797442,1736112649756,-500.0,0.00011913,2]
[347797443,1736112649765,-795.38,0.00011913,2]
[347797444,1736112649774,-733.76,0.00011913,2]
[347797445,1736112649784,-500.0,0.00011913,2]
[347797446,1736112649794,-500.0,0.00011913,2]
[347797447,1736112649804,-945.9,0.00011914,2]
[347797448,1736112649813,-500.0,0.00011914,2]
[347797449,1736112649823,-537.91,0.00011914,2]
[347797450,1736112649832,-1010.82,0.00011914,2]
[347797451,1736112649841,-500.0,0.00011914,2]
[347797452,1736112649851,-705.99,0.00011915,2]
[347797453,1736112649860,-500.0,0.00011915,2]
[347797454,1736112649869,-500.0,0.00011915,2]
[347797455,1736112649879,-500.0,0.00011915,2]
[347797456,1736112649888,-500.0,0.00011915,2]
[347797457,1736112649898,-500.0,0.00011915,2]
[347797458,1736112649908,-500.0,0.00011915,2]
[347797459,1736112649918,-732.02,0.00011915,2]
[347797460,1736112649927,-836.09,0.00011915,2]
[347797461,1736112649937,-500.0,0.00011915,2]
[347797462,1736112649947,-527.06,0.00011915,2]
[347797463,1736112649956,-1531.36,0.00011915,2]
[347797464,1736112649966,-1403.75,0.00011915,2]
[347797465,1736112649975,-500.0,0.00011915,2]
[347797466,1736112649985,-527.13,0.00011915,2]
[347797467,1736112649994,-753.31,0.00011915,2]
[347797468,1736112650004,-767.11,0.00011915,2]
[347797469,1736112650014,-500.0,0.00011915,2]
[347797470,1736112650024,-1288.76,0.00011915,2]
[347797471,1736112650034,-500.0,0.00011916,2]
[347797472,1736112650044,-500.0,0.00011916,2]
[347797473,1736112650053,-543.87,0.00011917,2]
[347797474,1736112650063,-500.0,0.00011917,2]
[347797475,1736112650073,-597.95203759,0.00011917,2]
[347797476,1736112650081,-500.0,0.00011917,2]
[347797477,1736112650090,-550.99,0.00011917,2]
[347797478,1736112650103,-500.0,0.00011917,2]
[347797479,1736112650115,-500.0,0.00011917,2]
[347797480,1736112650125,-500.0,0.00011917,2]